bitfinex-derivatives/quotes_SOLF0:USTF0_20250522
["timestamp","ask_amount","ask_price","bid_price","bid_amount"]
[1747894872675,5.22699098,175.68,175.64,128.72]
[1747894872977,5.22699098,175.68,175.66,5.6916]
[1747894873171,5.22699098,175.68,175.64,130.7867]
[1747894873372,5.6919,175.66,175.63,0.04346656]
[1747894873768,0.04373867,175.68,175.63,0.04346656]
[1747894874579,5.6925,175.64,175.63,0.04346656]
[1747894875276,5.6942,175.59,175.56,128.72]
[1747894875477,129.3837,175.67,175.56,128.72]
[1747894875778,5.6946,175.58,175.55,3.51104797]
[1747894875966,128.72,175.62,175.55,3.51104797]
[1747894876171,0.03738989,175.6,175.57,0.03781223]
[1747894876377,5.6944,175.58,175.57,0.03781223]
[1747894876678,0.03738989,175.6,175.57,0.03781223]
[1747894878577,5.73148989,175.6,175.57,0.03781223]
[1747894881185,0.03738989,175.6,175.57,0.03781223]
[1747894882182,0.03738989,175.6,175.57,5.73231223]
[1747894882483,0.03738989,175.6,175.57,0.03781223]
[1747894882877,5.6943,175.59,175.57,0.03781223]
[1747894883182,0.03738989,175.6,175.57,0.03781223]
[1747894883377,5.6945,175.58,175.57,0.03781223]
[1747894884380,5.6945,175.58,175.57,1.223e-05]
[1747894884578,11.3945,175.58,175.57,1.223e-05]
[1747894886179,5.6967,175.51,175.46,128.74]
[1747894886577,10.25419873,175.51,175.46,128.74]
[1747894886777,10.25419873,175.51,175.5,34.31405986]
[1747894886980,10.25419873,175.51,175.5,33.64625986]
[1747894887182,10.25419873,175.51,175.5,24.92775986]
[1747894887488,5.6971,175.5,175.49,6.273e-05]
[1747894888484,4.55749873,175.51,175.49,6.273e-05]
[1747894890184,4.55749873,175.5,175.49,6.273e-05]
[1747894892286,10.25459873,175.5,175.49,6.273e-05]
[1747894893187,4.55749873,175.5,175.49,6.273e-05]
[1747894893989,10.25459873,175.5,175.49,6.273e-05]
[1747894895887,4.55749873,175.5,175.49,6.273e-05]
[1747894896595,10.25459873,175.5,175.49,6.273e-05]
[1747894896890,5.6971,175.5,175.49,6.273e-05]
[1747894897186,134.3769,175.51,175.49,6.273e-05]
[1747894897381,128.68,175.51,175.49,6.273e-05]
[1747894898288,5.6971,175.5,175.49,6.273e-05]
[1747894900684,128.68,175.51,175.49,6.273e-05]
[1747894901794,134.3768,175.51,175.49,6.273e-05]
[1747894902285,128.68,175.51,175.49,6.273e-05]
[1747894902691,5.6971,175.5,175.49,6.273e-05]
[1747894903081,5.7,175.5,175.38,128.76]
[1747894903388,4.53836089,175.49,175.37,2.0972]
[1747894903689,7.37093197,175.48,175.34,128.7]
[1747894903888,7.37093197,175.48,175.33,3.9959]
[1747894904091,0.04111743,175.42,175.39,0.0434201]
[1747894904389,5.7003,175.4,175.39,0.0434201]
[1747894905189,5.7003,175.4,175.39,2.01e-05]
[1747894906598,128.7,175.41,175.39,2.01e-05]
[1747894909502,5.7003,175.4,175.39,2.01e-05]
[1747894910996,128.7,175.41,175.39,2.01e-05]
[1747894912007,134.4,175.41,175.39,2.01e-05]
[1747894912197,128.7,175.41,175.39,2.01e-05]
[1747894914204,5.7003,175.4,175.39,2.01e-05]
[1747894915704,134.4,175.41,175.39,2.01e-05]
[1747894916507,5.7003,175.4,175.39,2.01e-05]
[1747894919022,134.4,175.41,175.39,2.01e-05]
[1747894919820,5.7003,175.4,175.39,2.01e-05]
[1747894921122,128.7,175.41,175.39,2.01e-05]
[1747894921718,128.7,175.41,175.39,5.7005201]
[1747894921923,0.04111743,175.42,175.39,2.01e-05]
[1747894922823,5.74101743,175.42,175.39,2.01e-05]
[1747894923123,0.04111743,175.42,175.39,2.01e-05]
[1747894923427,5.7,175.41,175.39,2.01e-05]
[1747894924324,0.04111743,175.42,175.39,2.01e-05]
[1747894924926,5.74101743,175.42,175.39,2.01e-05]
[1747894925228,0.04111743,175.42,175.39,2.01e-05]
[1747894925414,5.74071743,175.42,175.39,5.7005201]
[1747894925725,0.04111743,175.42,175.39,5.7005201]
[1747894926531,0.04111743,175.42,175.4,5.7002]
[1747894927222,5.19976166,175.47,175.4,3.8653]
[1747894927820,5.19976166,175.47,175.44,5.6987]
[1747894928121,5.23954095,175.47,175.44,5.73550795]
[1747894928324,5.23954095,175.47,175.45,5.6986]
[1747894928325,4.55337994,175.46,175.45,5.6986]
[1747894928624,5.19976166,175.5,175.44,0.03680795]
[1747894928820,6.98964364,175.52,175.44,128.67680795]
[1747894929021,5.6969,175.51,175.44,128.67680795]
[1747894929220,6.98964364,175.52,175.44,128.67680795]
[1747894929528,12.68604364,175.52,175.44,128.67680795]
[1747894929727,0.03917052,175.5,175.44,128.67680795]
[1747894929915,0.03917052,175.5,175.48,5.6976]
[1747894930116,0.03917052,175.5,175.44,128.67680795]
[1747894931229,0.03917052,175.5,175.48,5.6974]
[1747894931928,0.03917052,175.5,175.49,5.6974]
[1747894934138,0.03917052,175.5,175.49,5.9599]
[1747894934735,0.03917052,175.5,175.49,11.6573]
[1747894935631,6.98964364,175.58,175.53,5.6959]
[1747894935837,6.98964364,175.58,175.49,5.9599]
[1747894936726,0.03709494,175.55,175.52,0.03652831]
[1747894937538,5.696,175.54,175.52,0.03652831]
[1747894938340,5.6961,175.53,175.52,0.03652831]
[1747894940840,0.03709494,175.55,175.52,0.03652831]
[1747894941541,5.73279494,175.55,175.52,0.03652831]
[1747894941842,0.03709494,175.55,175.52,0.03652831]
[1747894942947,0.03709494,175.55,175.52,5.73262831]
[1747894943247,0.03709494,175.55,175.52,0.03652831]
[1747894943544,0.03709494,175.55,175.52,5.73272831]
[1747894943846,0.03709494,175.55,175.52,0.03652831]
[1747894946347,0.03709494,175.55,175.53,5.6959]
[1747894946538,0.03709494,175.55,175.52,0.03652831]
[1747894947547,0.03709494,175.55,175.54,5.6958]
[1747894948642,0.03709494,175.55,175.52,0.03652831]
[1747894950548,5.6961,175.53,175.52,0.03652831]
[1747894951348,5.6985,175.46,175.42,3.931]
[1747894951551,128.56,175.49,175.41,128.56]
[1747894952053,5.6988,175.45,175.4,5.7002]
[1747894952366,0.03632848,175.44,175.42,5.6994]
[1747894952562,492.42,175.55,175.41,0.04275794]
[1747894952872,128.56,175.54,175.42,128.56]
[1747894953259,128.56,175.54,175.44,7.3669682]
[1747894953464,236.86,175.58,175.45,3.8538]
[1747894953659,0.04340641,175.53,175.5,5.7355776]
[1747894954368,0.04340641,175.53,175.51,5.6967]
[1747894954762,0.04340641,175.53,175.5,0.0387776]
[1747894955162,0.04340641,175.53,175.52,5.6964]
[1747894955466,236.86,175.58,175.5,0.0387776]
[1747894955669,134.2746,175.58,175.53,5.6958]
[1747894955967,128.58,175.58,175.47,128.58]
[1747894956170,5.695,175.57,175.52,5.6961]
[1747894956372,5.695,175.57,175.47,128.58]
[1747894956666,0.0374519,175.54,175.5,0.03637634]
[1747894957063,0.0374519,175.54,175.53,5.6959]
[1747894957362,0.0374519,175.54,175.5,0.03637634]
[1747894958973,0.0374519,175.54,175.52,5.6962]
[1747894959171,0.0374519,175.54,175.5,0.03637634]
[1747894960475,0.0374519,175.54,175.53,5.6961]
[1747894961165,0.0374519,175.54,175.52,5.6963]
[1747894963376,0.0374519,175.54,175.53,5.6961]
[1747894965176,0.0374519,175.54,175.52,5.6963]
[1747894965573,0.0374519,175.54,175.5,0.03637634]
[1747894965877,0.0374519,175.54,175.52,5.6962]
[1747894966371,0.0374519,175.54,175.5,0.03637634]
[1747894966677,0.0374519,175.54,175.53,5.6961]
[1747894975181,0.0374519,175.54,175.53,9.6776]
[1747894976076,6.98964364,175.6,175.53,3.9815]
[1747894976271,6.98964364,175.61,175.53,3.9815]
[1747894977177,0.0436099,175.59,175.55,0.04380566]
[1747894978390,0.0436099,175.59,175.58,5.6945]
[1747894982385,104.88390118,175.65,175.57,128.44]
[1747894983384,0.03783558,175.63,175.59,0.03893835]
[1747894983781,5.6938,175.6,175.59,0.03893835]
[1747894984779,5.6948,175.57,175.52,128.44]
[1747894984975,128.44,175.64,175.52,128.44]
[1747894985584,5.6948,175.58,175.53,5.696]
[1747894985886,0.04015789,175.57,175.54,0.04212414]
[1747894986487,0.04015789,175.57,175.54,5.73782414]
[1747894991990,0.04015789,175.57,175.55,5.6954]
[1747894992191,0.04015789,175.57,175.54,0.04212414]
[1747894993382,0.04015789,175.57,175.55,5.6952]
[1747894994492,0.04015789,175.57,175.56,5.6951]
[1747894995190,0.04015789,175.57,175.55,5.6953]
[1747894995889,0.04015789,175.57,175.56,5.6951]
[1747894998995,0.04015789,175.57,175.55,5.6954]
[1747894999289,0.04015789,175.57,175.54,0.04212414]
[1747894999489,0.04015789,175.57,175.56,5.6951]
[1747895005993,10.9210244,175.61,175.54,0.04212414]
[1747895005994,5.2272244,175.61,175.6,5.6938]
[1747895006983,6.98964364,175.63,175.62,5.6932]
[1747895008290,0.0429418,175.64,175.63,5.6929]
[1747895008491,6.98964364,175.71,175.63,128.24]
[1747895009581,0.03925699,175.69,175.65,0.03887111]
[1747895011196,0.03925699,175.69,175.67,5.6914]
[1747895011495,0.03925699,175.69,175.65,0.03887111]
[1747895012293,0.03925699,175.69,175.68,5.6912]
[1747895014795,0.03925699,175.69,175.67,5.6915]
[1747895015001,0.03925699,175.69,175.65,0.03887111]
[1747895015200,0.03925699,175.69,175.65,1.98667111]
[1747895016199,0.03925699,175.69,175.68,5.6912]
[1747895016403,2.0132,175.76,175.68,127.94]
[1747895017002,135.20964364,175.78,175.68,127.94]
[1747895017003,135.20964364,175.78,175.68,135.30110904]
[1747895017200,6.98964364,175.78,175.69,1.9428]
[1747895017405,0.03841701,175.75,175.73,5.6893]
[1747895017588,0.03841701,175.75,175.72,0.04216228]
[1747895018097,0.03841701,175.75,175.74,5.6893]
[1747895022103,0.03841701,175.75,175.73,133.6095]
[1747895022306,0.03841701,175.75,175.73,127.92]
[1747895024606,0.03841701,175.75,175.74,5.6893]
[1747895028699,0.03841701,175.75,175.72,0.04216228]
[1747895029098,5.6896,175.73,175.72,0.04216228]
[1747895029503,0.03841701,175.75,175.65,1.9478]
[1747895029701,5.6908,175.7,175.66,5.6916]
[1747895029899,5.6908,175.7,175.65,127.86]
[1747895030300,6.0443,175.76,175.65,127.86]
[1747895030605,0.04338319,175.72,175.69,0.03619424]
[1747895032007,0.04338319,175.72,175.69,5.72709424]
[1747895032203,0.04338319,175.72,175.69,0.03619424]
[1747895032603,0.04338319,175.72,175.7,5.6906]
[1747895034194,0.04338319,175.72,175.71,5.6903]
[1747895034905,0.04338319,175.72,175.71,133.5703]
[1747895035904,5.6878,175.79,175.76,5.6886]
[1747895036410,5.6878,175.79,175.71,127.88]
[1747895036798,0.03953095,175.77,175.73,0.0368457]
[1747895037004,0.03953095,175.77,175.75,5.6887]
[1747895037203,0.03953095,175.77,175.73,0.0368457]
[1747895037813,0.03953095,175.77,175.76,5.6886]
[1747895040517,0.03953095,175.77,175.76,133.5486]
[1747895041720,3.095e-05,175.77,175.76,133.5486]
[1747895042413,4.0217,175.85,175.76,127.86]
[1747895042922,2.0614,175.85,175.76,127.86]
[1747895043218,232.62902893,175.86,175.77,7.36110904]
[1747895043415,104.76902893,175.86,175.77,115.50110904]
[1747895043617,104.76902893,175.86,175.83,5.6862]
[1747895044016,104.79926294,175.86,175.83,5.6862]
[1747895044212,5.71563401,175.86,175.81,5.6867]
[1747895044917,5.71563401,175.86,175.82,5.6866]
[1747895045116,0.03023401,175.86,175.8,0.03783623]
[1747895045325,0.03023401,175.86,175.81,127.54]
[1747895045525,0.03023401,175.86,175.8,0.03783623]
[1747895047323,0.03023401,175.86,175.84,5.6859]
[1747895047622,0.03023401,175.86,175.8,0.03783623]
[1747895048019,0.03023401,175.86,175.85,5.6857]
[1747895051320,5.6841,175.91,175.88,5.6848]
[1747895051925,5.6835,175.92,175.88,5.6848]
[1747895052129,5.6835,175.92,175.89,5.6844]
[1747895052320,5.6835,175.92,175.89,5.72672853]
[1747895052516,5.6835,175.92,175.89,0.04232853]
[1747895052728,5.6838,175.91,175.89,0.04232853]
[1747895053528,5.6836,175.92,175.89,0.04232853]
[1747895055431,5.6838,175.91,175.89,0.04232853]
[1747895055930,5.6836,175.92,175.89,0.04232853]
[1747895056928,127.52,175.94,175.89,0.04232853]
[1747895057121,127.52,175.94,175.9,5.6841]
[1747895057730,5.6832,175.93,175.89,0.04232853]
[1747895058232,133.2031,175.94,175.89,0.04232853]
[1747895059034,133.2031,175.94,175.9,5.6839]
[1747895059334,127.52,175.94,175.89,0.04232853]
[1747895059535,4.0975,175.95,175.89,0.04232853]
[1747895059733,4.0975,175.95,175.91,5.6838]
[1747895060031,232.16275248,175.98,175.91,5.6838]
[1747895060331,232.16275248,175.98,175.89,0.04232853]
[1747895060332,232.16275248,175.98,175.93,0.03931467]
[1747895060727,5.6828,175.94,175.93,0.03931467]
[1747895062534,5.6826,175.95,175.93,0.03931467]
[1747895063132,5.6828,175.94,175.93,0.03931467]
[1747895067036,5.6828,175.94,175.93,0.03931467]
[1747895071452,232.16275248,175.98,175.93,0.03931467]
[1747895072649,1.9961,175.99,175.93,0.03931467]
[1747895073047,5.20582403,176.0,175.97,5.6818]
[1747895073248,5.20582403,176.0,175.97,0.03952368]
[1747895073753,5.20582403,176.0,175.99,5.6812]
[1747895074650,5.20582403,176.0,175.98,5.6814]
[1747895076558,5.6805,176.02,175.98,5.6814]
[1747895077557,1.9699,176.04,175.97,0.03952368]
[1747895078748,5.6808,176.01,175.97,0.03952368]
[1747895079257,5.681,176.0,175.97,0.03952368]
[1747895079555,1.9699,176.04,175.97,5.72132368]
[1747895079950,5.6808,176.01,175.97,5.72132368]
[1747895080257,1.9699,176.04,175.97,5.72132368]
[1747895081053,5.6806,176.01,175.97,5.72132368]
[1747895081954,1.9699,176.04,175.97,0.03952368]
[1747895082556,5.6803,176.02,175.98,5.6812]
[1747895082755,1.9699,176.04,175.98,5.6812]
[1747895083156,1.9699,176.04,175.97,5.72132368]
[1747895083560,5.6805,176.02,175.97,5.72132368]
[1747895083760,5.6805,176.02,175.97,0.03952368]
[1747895084159,5.6805,176.02,175.97,5.72122368]
[1747895084462,5.6806,176.01,175.97,5.72122368]
[1747895086268,5.6803,176.02,175.98,5.6815]
[1747895086463,5.6803,176.02,175.97,0.03952368]
[1747895086765,5.6803,176.02,175.97,5.72112368]
[1747895087165,5.6803,176.02,175.97,0.03952368]
[1747895087761,5.6803,176.02,175.98,5.6813]
[1747895088466,5.6806,176.01,175.97,5.72132368]
[1747895090968,5.681,176.0,175.97,5.72132368]
[1747895091269,7.17572403,176.04,175.97,5.72132368]
[1747895091769,5.6808,176.01,175.97,5.72132368]
[1747895091972,7.17572403,176.04,175.97,0.03952368]
[1747895094072,5.6806,176.01,175.97,5.72112368]
[1747895094770,5.6804,176.02,175.98,5.6815]
[1747895095165,5.6806,176.01,175.97,5.72132368]
[1747895095869,5.6806,176.01,175.98,5.6815]
[1747895096068,5.68,176.03,175.97,0.03952368]
[1747895096470,7.17572403,176.04,175.99,5.681]
[1747895096780,5.20582403,176.04,175.97,0.03952368]
[1747895097673,134.73462403,176.06,175.97,0.03952368]
[1747895097870,5.6798,176.04,175.97,0.03952368]
[1747895098476,5.6798,176.04,176.0,5.6807]
[1747895098973,132.64582403,176.06,175.97,0.03952368]
[1747895099481,5.6793,176.05,175.97,0.03952368]
[1747895100181,5.6793,176.05,176.01,5.6805]
[1747895100480,5.6793,176.05,176.01,5.71882244]
[1747895101177,5.6796,176.04,176.01,5.71882244]
[1747895101377,127.44,176.06,176.01,0.03832244]
[1747895101577,5.6797,176.04,176.01,0.03832244]
[1747895101779,127.44,176.06,176.01,0.03832244]
[1747895102280,5.68,176.03,176.01,0.03832244]
[1747895103183,5.6803,176.02,176.01,0.03832244]
[1747895107988,10.88612403,176.02,176.01,0.03832244]
[1747895115990,6.98964364,176.02,175.91,2.0033]
[1747895116191,128.8409,176.01,175.87,126.74]
[1747895116789,7.36110904,175.99,175.87,126.74]
[1747895116995,0.03748772,175.95,175.91,0.03998204]
[1747895117193,126.77748772,175.95,175.91,0.03998204]
[1747895118398,5.24662255,175.92,175.91,0.03998204]
[1747895118698,10.93012255,175.92,175.91,0.03998204]
[1747895119898,5.24662255,175.92,175.91,0.03998204]
[1747895120797,10.93012255,175.92,175.91,0.03998204]
[1747895120999,5.6835,175.92,175.91,0.03998204]
[1747895122796,10.92982255,175.93,175.91,0.03998204]
[1747895123200,5.24662255,175.94,175.91,0.03998204]
[1747895123495,5.6834,175.93,175.91,0.03998204]
[1747895124100,5.6831,175.93,175.91,0.03998204]
[1747895124298,5.24662255,175.94,175.91,0.03998204]
[1747895124994,10.92952255,175.94,175.91,0.03998204]
[1747895126701,5.6832,175.93,175.91,0.03998204]
[1747895127798,132.46008772,175.95,175.91,0.03998204]
[1747895128097,126.77748772,175.95,175.91,0.03998204]
[1747895128400,5.683,175.94,175.91,0.03998204]
[1747895128601,126.77748772,175.95,175.91,0.03998204]
[1747895131101,5.6834,175.93,175.91,0.03998204]
[1747895131902,5.6835,175.92,175.91,0.03998204]
[1747895136206,126.77748772,175.95,175.91,0.03998204]
[1747895138711,5.6834,175.93,175.91,0.03998204]
[1747895138901,126.77748772,175.95,175.91,0.03998204]
[1747895140212,5.6835,175.92,175.91,0.03998204]
[1747895142310,5.6832,175.93,175.91,0.03998204]
[1747895142611,132.02411027,175.95,175.91,0.03998204]
[1747895144608,5.6835,175.92,175.91,0.03998204]
[1747895150815,10.92982255,175.93,175.91,0.03998204]
[1747895152018,5.24662255,175.93,175.91,0.03998204]
[1747895152513,132.02411027,175.95,175.91,0.03998204]
[1747895153623,5.683,175.94,175.91,0.03998204]
[1747895154821,132.02411027,175.95,175.91,0.03998204]
[1747895155022,5.24662255,175.94,175.91,0.03998204]
[1747895155416,5.24662255,175.94,175.93,5.6828]
[1747895155616,2.09362255,175.94,175.93,5.6828]
[1747895155925,0.03748772,175.95,175.94,5.6828]
[1747895160228,0.03748772,175.95,175.93,5.6831]
[1747895160728,0.03748772,175.95,175.92,4.0432]
[1747895160930,0.03748772,175.95,175.92,6.1289]
[1747895161124,6.98964364,176.01,175.93,126.54]
[1747895161929,5.6814,175.99,175.95,5.6823]
[1747895162119,5.6814,175.99,175.95,5.72508502]
[1747895162324,6.98964364,176.01,175.95,0.04278502]
[1747895162520,5.6817,175.98,175.95,0.04278502]
[1747895162726,6.98964364,176.03,175.95,0.04278502]
[1747895163729,12.66964364,176.03,175.95,0.04278502]
[1747895164131,12.66964364,176.03,175.98,5.6812]
[1747895164331,12.66964364,176.03,175.99,0.04015669]
[1747895164332,6.98964364,176.03,175.99,0.04015669]
[1747895164824,6.98964364,176.03,175.99,5.72125669]
[1747895165131,133.52964364,176.04,175.99,0.04015669]
[1747895166431,5.6801,176.03,175.99,5.72135669]
[1747895166931,133.52964364,176.04,176.01,5.6803]
[1747895167126,133.52964364,176.04,175.99,0.04015669]
[1747895167325,6.98964364,176.04,175.99,0.04015669]
[1747895167929,4.1222,176.06,175.99,0.04015669]
[1747895168128,5.6809,176.0,175.99,0.04015669]
[1747895170228,5.6817,175.98,175.92,126.2]
[1747895170428,126.2,176.02,175.92,126.2]
[1747895170635,126.2,176.02,175.92,131.8832]
[1747895171035,126.2,176.02,175.92,126.2]
[1747895171439,0.04015669,175.99,175.95,0.03647338]
[1747895171935,5.6816,175.98,175.95,0.03647338]
[1747895172637,0.04015669,175.99,175.95,0.03647338]
[1747895173440,0.04015669,175.99,175.96,5.6819]
[1747895174242,0.04015669,175.99,175.95,5.71887338]
[1747895175041,0.04015669,175.99,175.96,5.6821]
[1747895177342,0.04015669,175.99,175.97,5.6818]
[1747895177538,0.04015669,175.99,175.95,0.03647338]
[1747895177939,0.04015669,175.99,175.96,5.6821]
[1747895178137,0.04015669,175.99,175.95,0.03647338]
[1747895178645,0.04015669,175.99,175.96,5.6819]
[1747895180638,0.04015669,175.99,175.95,5.71887338]
[1747895180839,0.04015669,175.99,175.95,0.03647338]
[1747895181444,0.04015669,175.99,175.96,5.682]
[1747895181846,0.04015669,175.99,175.95,0.03647338]
[1747895182035,0.04015669,175.99,175.96,5.6821]
[1747895184049,0.04015669,175.99,175.97,5.6817]
[1747895184752,0.04015669,175.99,175.98,5.6815]
[1747895188351,0.04015669,175.99,175.97,5.6818]
[1747895189951,0.04015669,175.99,175.95,0.03647338]
[1747895191555,0.04015669,175.99,175.97,5.6816]
[1747895191951,0.04015669,175.99,175.95,0.03647338]
[1747895192147,0.04015669,175.99,175.97,5.6815]
[1747895192353,0.04015669,175.99,175.95,0.03647338]
[1747895192648,0.04015669,175.99,175.96,5.6821]
[1747895192841,0.04015669,175.99,175.95,0.03647338]
[1747895193340,0.04015669,175.99,175.96,5.6819]
[1747895194655,0.04015669,175.99,175.97,5.6818]
[1747895196454,0.04015669,175.99,175.98,5.6815]
[1747895196851,6.98964364,176.04,175.97,126.18]
[1747895197747,12.66894364,176.05,176.02,5.6802]
[1747895197947,12.66894364,176.05,176.02,5.71902838]
[1747895199150,6.98964364,176.05,176.02,5.71902838]
[1747895200060,5.679,176.06,176.02,5.71902838]
[1747895200659,5.6793,176.05,176.02,0.03882838]
[1747895201858,5.6793,176.05,176.02,5.71902838]
[1747895202167,12.66854364,176.07,176.02,5.71902838]
[1747895203161,5.679,176.06,176.02,5.71902838]
[1747895203665,6.98964364,176.07,176.02,0.03882838]
[1747895204055,6.98964364,176.07,175.93,13.48003687]
[1747895204361,5.6809,176.0,175.95,125.8]
[1747895204761,5.6809,176.0,175.95,131.4823]
[1747895205154,0.03882838,175.99,175.96,0.04202618]
[1747895205561,0.03882838,175.99,175.96,5.72412618]
[1747895205858,0.03882838,175.99,175.96,0.04202618]
[1747895206659,0.03882838,175.99,175.97,5.6818]
[1747895207561,0.03882838,175.99,175.96,0.04202618]
[1747895208057,125.8,175.98,175.86,4.66433363]
[1747895208259,2.026,175.97,175.86,4.66433363]
[1747895208455,5.6834,175.93,175.88,5.6845]
[1747895208656,2.026,175.97,175.85,125.8]
[1747895209062,6.98964364,176.0,175.89,0.04361697]
[1747895209063,0.03971413,175.93,175.89,0.04361697]
[1747895209264,0.03971413,175.93,175.89,0.03909432]
[1747895209566,0.03971413,175.93,175.91,5.6836]
[1747895209763,0.03971413,175.93,175.89,0.03909432]
[1747895211266,5.72281413,175.93,175.89,5.72329432]
[1747895211467,0.03971413,175.93,175.89,0.03909432]
[1747895211862,0.03971413,175.93,175.9,5.6838]
[1747895214871,5.72281413,175.93,175.89,5.72339432]
[1747895215172,0.03971413,175.93,175.89,5.72339432]
[1747895215369,0.03971413,175.93,175.89,0.03909432]
[1747895215971,0.03971413,175.93,175.91,5.6838]
[1747895216270,0.03971413,175.93,175.89,0.03909432]
[1747895217073,0.03971413,175.93,175.92,5.6835]
[1747895218574,0.03971413,175.93,175.91,5.6835]
[1747895218973,0.03971413,175.93,175.89,0.03909432]
[1747895220477,0.03971413,175.93,175.92,5.6835]
[1747895221172,0.03971413,175.93,175.9,5.684]
[1747895221476,0.03971413,175.93,175.89,0.03909432]
[1747895221773,0.03971413,175.93,175.9,5.6838]
[1747895223073,0.03971413,175.93,175.89,0.03909432]
[1747895223474,0.03971413,175.93,175.9,5.684]
[1747895224876,0.03971413,175.93,175.91,5.6837]
[1747895225078,0.03971413,175.93,175.89,0.03909432]
[1747895225376,0.03971413,175.93,175.92,5.6835]
[1747895225577,0.03971413,175.93,175.89,0.03909432]
[1747895225877,0.03971413,175.93,175.91,5.6835]
[1747895226379,0.03971413,175.93,175.89,0.03909432]
[1747895226582,0.03971413,175.93,175.92,5.6835]
[1747895226878,5.24606581,175.95,175.89,0.03909432]
[1747895227071,5.24606581,175.97,175.89,0.03909432]
[1747895227273,5.24606581,175.97,175.89,1.9622]
[1747895227878,0.04114043,175.95,175.91,0.04260238]
[1747895228079,0.04114043,175.95,175.92,125.84]
[1747895228968,0.04114043,175.95,175.94,5.6828]
[1747895238892,0.04114043,175.95,175.93,5.683]
[1747895239087,0.04114043,175.95,175.91,0.04260238]
[1747895239484,0.04114043,175.95,175.92,5.6832]
[1747895241292,0.04114043,175.95,175.91,0.04260238]
[1747895241293,5.6828,175.94,175.91,0.04260238]
[1747895241494,1.9683,175.94,175.91,0.04260238]
[1747895242892,1.9683,175.94,175.87,5.6849]
[1747895243295,5.6834,175.93,175.87,5.6849]
[1747895243484,125.46,175.92,175.86,5.6853]
[1747895243796,0.04041754,175.91,175.87,0.04076059]
[1747895244393,0.04041754,175.91,175.87,5.72566059]
[1747895244690,0.04041754,175.91,175.87,0.04076059]
[1747895246798,0.04041754,175.91,175.87,5.72556059]
[1747895247594,0.04041754,175.91,175.87,0.04076059]
[1747895248301,0.04041754,175.91,175.9,5.6841]
[1747895249898,0.04041754,175.91,175.89,5.6843]
[1747895250103,0.04041754,175.91,175.87,0.04076059]
[1747895250503,0.04041754,175.91,175.89,5.6841]
[1747895250796,0.04041754,175.91,175.87,0.04076059]
[1747895251003,0.04041754,175.91,175.9,5.6841]
[1747895255108,130.72606581,175.97,175.92,5.6834]
[1747895256011,0.03745429,175.96,175.93,0.03851965]
[1747895256912,5.71965429,175.96,175.93,0.03851965]
[1747895257114,0.03745429,175.96,175.93,0.03851965]
[1747895262332,5.6828,175.94,175.93,0.03851965]
[1747895262614,1.8998,175.95,175.82,3.9521]
[1747895263121,3.812,175.95,175.82,3.9521]
[1747895263420,5.6831,175.94,175.87,5.6848]
[1747895263713,0.03716639,175.92,175.89,0.04035196]
[1747895265418,125.14,175.91,175.74,6.97985189]
[1747895265623,125.14,175.91,175.75,127.1746]
[1747895265821,7.33243687,175.88,175.75,127.1746]
[1747895266020,4.0645,175.87,175.75,127.1746]
[1747895266322,125.14,175.86,175.75,127.1746]
[1747895266620,5.687,175.81,175.8,0.03918358]
[1747895267624,5.6867,175.82,175.8,0.03918358]
[1747895267814,0.04299164,175.83,175.8,0.03918358]
[1747895268015,5.72949164,175.83,175.8,0.03918358]
[1747895268929,0.04299164,175.83,175.8,0.03918358]
[1747895269924,0.04299164,175.83,175.71,127.1946]
[1747895270127,108.06,175.84,175.71,127.1946]
[1747895270427,5.6879,175.79,175.72,5.6897]
[1747895270726,125.16,175.8,175.71,127.1946]
[1747895270927,0.03684515,175.77,175.74,0.04311461]
[1747895272728,0.03684515,175.77,175.74,5.73201461]
[1747895273121,0.03684515,175.77,175.74,0.04311461]
[1747895274731,5.6885,175.76,175.74,0.04311461]
[1747895275930,5.6889,175.75,175.74,0.04311461]
[1747895277032,5.72514515,175.77,175.74,0.04311461]
[1747895278333,5.6889,175.75,175.74,0.04311461]
[1747895279623,5.6886,175.76,175.74,0.04311461]
[1747895279927,0.03684515,175.77,175.74,0.04311461]
[1747895280330,5.6885,175.76,175.74,0.04311461]
[1747895280530,0.03684515,175.77,175.74,0.04311461]
[1747895281630,5.6888,175.76,175.74,0.04311461]
[1747895281831,0.03684515,175.77,175.74,0.04311461]
[1747895282231,5.6888,175.75,175.74,0.04311461]
[1747895285031,0.03684515,175.77,175.74,0.04311461]